bitfinex/quotes_ETHUSD_20250526
["timestamp","ask_amount","ask_price","bid_price","bid_amount"]
[1748271378053,0.78486774,2548.2,2547.6,8.0]
[1748271378250,0.7850091,2547.8,2547.6,8.0]
[1748271379652,0.78497802,2547.9,2547.6,8.0]
[1748271379863,0.78494393,2548.0,2547.6,8.0]
[1748271380178,0.78498382,2547.9,2547.6,8.0]
[1748271380380,5.4776405,2548.3,2547.6,8.0]
[1748271380574,0.54776405,2548.2,2547.6,8.0]
[1748271380878,0.78497674,2547.9,2547.6,8.0]
[1748271381594,4.70793465,2548.0,2547.6,8.0]
[1748271381753,3.923,2548.1,2547.9,4.6174923]
[1748271382467,4.70790085,2548.1,2547.9,4.6174923]
[1748271383178,0.78493703,2548.0,2547.8,8.0]
[1748271383371,0.78495831,2548.0,2547.8,8.0]
[1748271384084,3.923,2548.1,2547.8,8.0]
[1748271384447,4.70791766,2548.1,2547.8,8.0]
[1748271385146,0.78509184,2547.5,2547.3,0.39744529]
[1748271385367,0.78515369,2547.3,2547.1,8.1]
[1748271385573,0.7581,2548.0,2547.4,8.0]
[1748271385758,3.923,2547.7,2547.6,4.6174923]
[1748271386284,0.78497647,2547.9,2547.6,4.6174923]
[1748271386463,0.78499117,2547.8,2547.6,4.6174923]
[1748271386653,0.78491297,2548.1,2547.6,5.4415923]
[1748271386853,3.923,2548.0,2547.6,5.4415923]
[1748271387376,0.78500967,2547.8,2547.6,5.4415923]
[1748271387688,0.78496309,2547.9,2547.6,5.4415923]
[1748271388582,0.78502178,2547.7,2547.4,4.6174923]
[1748271388892,0.785071,2547.6,2547.4,4.6174923]
[1748271389251,0.78509939,2547.5,2547.3,0.39404518]
[1748271389460,0.78511423,2547.4,2547.1,13.5064923]
[1748271389659,0.78505259,2547.6,2547.1,0.889]
[1748271389866,0.78516196,2547.3,2547.1,0.889]
[1748271390490,0.78513306,2547.4,2547.1,5.89684852]
[1748271392353,0.78510139,2547.5,2547.2,8.0]
[1748271392784,0.78509315,2547.5,2547.2,8.0]
[1748271393184,0.78506988,2547.6,2547.3,4.6174923]
[1748271393392,0.78510735,2547.5,2547.3,4.6174923]
[1748271395253,0.78511423,2547.4,2547.3,4.6174923]
[1748271396596,3.923,2547.7,2547.2,8.0]
[1748271396789,0.78514505,2547.3,2547.2,8.0]
[1748271397586,0.78513942,2547.4,2547.2,8.0]
[1748271397779,0.7851514,2547.3,2547.1,5.89684852]
[1748271398597,0.78517587,2547.2,2547.1,0.49035622]
[1748271398802,0.7851514,2547.3,2547.1,0.49035622]
[1748271398803,0.78515896,2547.3,2547.1,0.49035622]
[1748271398966,0.78517587,2547.2,2547.1,0.49035622]
[1748271399693,0.78516343,2547.3,2547.1,0.49035622]
[1748271400291,0.78517587,2547.2,2547.1,0.1]
[1748271401401,4.70810658,2547.5,2547.1,5.5188923]
[1748271401605,0.78510697,2547.5,2547.3,4.6174923]
[1748271402606,0.78511423,2547.4,2547.1,5.5188923]
[1748271402917,0.4663562,2548.8,2547.5,0.55]
[1748271403209,0.4663562,2548.8,2548.5,5.4023923]
[1748271403384,0.4663562,2548.8,2548.5,0.7849]
[1748271403706,0.78482202,2548.4,2548.0,8.0]
[1748271403905,0.78479113,2548.5,2548.0,8.0]
[1748271404070,1.02416766,2548.5,2548.0,8.0]
[1748271405108,1.02416766,2548.5,2548.1,8.0]
[1748271405713,0.78480797,2548.4,2547.9,8.62470718]
[1748271405900,0.78481474,2548.4,2547.9,12.54948901]
[1748271406211,1.02416812,2548.5,2547.9,12.54948901]
[1748271406410,1.02416812,2548.5,2548.1,8.0]
[1748271407216,1.2542562,2550.0,2548.6,7.84744564]
[1748271407401,1.2542562,2550.0,2549.3,8.805]
[1748271407600,1.2542562,2550.0,2549.5,17.60141145]
[1748271407979,2.03857129,2550.0,2549.6,8.0]
[1748271408381,1.57221509,2550.0,2549.6,8.0]
[1748271408903,1.57221509,2550.0,2549.6,8.38930384]
[1748271409618,0.78416387,2550.5,2549.8,17.60141145]
[1748271409619,0.7594,2550.5,2549.8,17.60141145]
[1748271409915,0.78425446,2550.2,2549.8,17.60141145]
[1748271410419,0.7842883,2550.1,2549.8,8.0]
[1748271412017,0.78431283,2550.1,2549.8,17.60141145]
[1748271412381,0.7594,2550.5,2549.9,12.70749266]
[1748271412582,0.78420784,2550.4,2549.9,8.7859]
[1748271412814,0.78420784,2550.4,2550.0,10.23091734]
[1748271413186,0.78422268,2550.3,2550.0,10.23091734]
[1748271413794,0.78422268,2550.3,2550.0,2.23091734]
[1748271414326,0.78420104,2550.4,2550.0,2.23091734]
[1748271415226,0.78422249,2550.3,2550.0,2.23091734]
[1748271415423,0.78422249,2550.3,2550.1,1.10168173]
[1748271415839,0.78425221,2550.2,2550.1,1.10168173]
[1748271416517,0.78423738,2550.3,2550.1,1.10168173]
[1748271416914,0.78419255,2550.4,2550.1,10.70309318]
[1748271417139,3.921,2550.5,2550.2,1.68555486]
[1748271417441,0.78422146,2550.3,2550.2,1.68555486]
[1748271418419,0.78425221,2550.2,2550.1,18.70309318]
[1748271418738,0.78422146,2550.3,2550.1,18.70309318]
[1748271418946,0.78417986,2550.5,2550.1,22.62448886]
[1748271419128,0.78416271,2550.5,2550.2,8.0]
[1748271419531,0.78419336,2550.4,2550.2,8.0]
[1748271420143,0.78422146,2550.3,2550.2,8.0]
[1748271420339,0.7614,2550.8,2550.2,9.87030932]
[1748271420945,0.78419192,2550.4,2550.2,9.87030932]
[1748271421349,0.78425221,2550.2,2550.1,8.0]
[1748271421654,0.78423712,2550.3,2550.1,8.0]
[1748271421857,0.78425221,2550.2,2550.1,8.0]
[1748271422357,0.78419509,2550.4,2550.1,8.0]
[1748271422544,0.78425221,2550.2,2550.1,8.0]
[1748271422932,3.92,2550.4,2550.1,8.0]
[1748271422933,0.78424243,2550.3,2550.1,8.0]
[1748271423337,0.78425221,2550.2,2550.1,8.0]
[1748271424569,0.7908,2550.3,2549.7,14.36141145]
[1748271424893,2.04610235,2550.3,2549.6,0.38930384]
[1748271425072,0.78446754,2549.5,2549.4,4.76]
[1748271425363,0.78445351,2549.6,2549.2,0.98671472]
[1748271425678,0.78445351,2549.6,2549.3,2.25110627]
[1748271425819,0.7844227,2549.7,2549.3,2.25110627]
[1748271426368,0.78444217,2549.6,2549.3,2.25110627]
[1748271426572,0.78444217,2549.6,2549.4,8.0]
[1748271426937,0.78445454,2549.6,2549.4,8.0]
[1748271427266,0.78446754,2549.5,2549.4,8.0]
[1748271427446,0.78445037,2549.6,2549.4,8.0]
[1748271427766,0.78449831,2549.4,2549.3,0.38277342]
[1748271428070,0.78447922,2549.5,2549.2,8.0]
[1748271428231,0.78450095,2549.4,2549.2,8.0]
[1748271429059,0.78447796,2549.5,2549.2,8.0]
[1748271429373,0.78450059,2549.4,2549.2,8.39847728]
[1748271429670,0.78450059,2549.4,2549.2,10.27587615]
[1748271429850,0.78452908,2549.3,2549.2,10.27587615]
[1748271430247,0.78452908,2549.3,2549.2,0.39847728]
[1748271430555,0.78443677,2549.6,2548.8,9.60141145]
[1748271430743,0.7846337,2549.0,2548.8,9.60141145]
[1748271430938,0.7846337,2549.0,2548.9,8.0]
[1748271431336,0.78460729,2549.1,2548.8,9.60141145]
[1748271431533,0.78460729,2549.1,2548.9,9.09611686]
[1748271433680,0.784561,2549.2,2548.9,9.09611686]
[1748271433855,0.78462142,2549.0,2548.9,9.09611686]
[1748271435357,0.78460793,2549.1,2548.9,9.09611686]
[1748271436690,0.78462142,2549.0,2548.9,8.0]
[1748271442880,0.7846522,2548.9,2548.8,0.38671585]
[1748271443056,0.78471377,2548.7,2548.6,8.0]
[1748271443259,0.78474456,2548.6,2548.5,0.46436174]
[1748271443498,0.78474456,2548.6,2548.5,0.85748954]
[1748271443707,0.7547,2548.8,2548.5,11.40712066]
[1748271443863,4.70571412,2548.7,2548.5,11.40712066]
[1748271444204,0.78474456,2548.6,2548.5,11.40712066]
[1748271444358,0.78474456,2548.6,2548.5,10.45890099]
[1748271444561,0.78474456,2548.6,2548.5,9.99453925]
[1748271444958,3.921,2548.8,2548.5,9.99453925]
[1748271445161,0.78469469,2548.8,2548.5,9.99453925]
[1748271445391,3.921,2549.0,2548.6,0.7663]
[1748271445602,0.78463486,2549.0,2548.8,9.60141145]
[1748271445800,0.78463486,2549.0,2548.9,8.0]
[1748271448803,4.70560873,2549.1,2548.8,9.60141145]
[1748271449394,0.7846261,2549.0,2548.8,9.60141145]
[1748271451004,0.8037,2549.7,2548.9,0.7833]
[1748271451233,0.78455198,2549.3,2549.0,1.03847115]
[1748271451612,3.921,2549.6,2549.0,1.03847115]
[1748271451807,3.921,2549.6,2548.9,8.7833]
[1748271452307,4.70543855,2549.6,2548.9,8.7833]
[1748271452512,0.78458094,2549.2,2548.9,8.7833]
[1748271453624,0.7846522,2548.9,2548.8,0.46436174]
[1748271453924,3.921,2549.1,2548.7,0.62470718]
[1748271454134,0.78460069,2549.1,2548.7,10.56902182]
[1748271454431,4.70560069,2549.1,2548.7,10.56902182]
[1748271454730,0.78462519,2549.0,2548.7,10.56902182]
[1748271455031,0.78462519,2549.0,2548.8,0.46904336]
[1748271456123,0.78454974,2549.3,2549.0,8.0]
[1748271457384,0.78454974,2549.3,2549.0,8.46904336]
[1748271458384,0.78456086,2549.2,2549.0,8.46904336]
[1748271458584,0.78456086,2549.2,2549.1,0.46904336]
[1748271459684,4.70556086,2549.2,2549.1,0.46904336]
[1748271459885,5.33034051,2549.2,2549.1,0.46904336]
[1748271460504,4.70556086,2549.2,2549.1,0.46904336]
[1748271461124,0.78462142,2549.0,2548.8,0.46904336]
[1748271461428,0.78463377,2549.0,2548.8,0.46904336]
[1748271462433,0.78463377,2549.0,2548.9,0.46904336]
[1748271464393,0.78449933,2549.4,2548.9,0.46904336]
[1748271464394,0.7519,2549.5,2548.9,1.27814336]
[1748271464595,0.7845416,2549.3,2549.0,9.60141145]
[1748271465123,0.7845787,2549.2,2549.0,10.07045481]
[1748271465330,0.78459063,2549.1,2549.0,10.07045481]
[1748271466126,4.70557719,2549.2,2549.0,5.08214176]
[1748271466329,4.70557719,2549.2,2549.0,5.92877927]
[1748271467032,0.8255,2549.8,2549.1,9.3365345]
[1748271467328,0.7844823,2549.5,2549.4,12.6130984]
[1748271467529,0.78455986,2549.2,2549.1,0.7846]
[1748271467827,0.78453137,2549.3,2549.2,0.62470718]
[1748271469636,0.78453137,2549.3,2549.1,5.86725411]
[1748271469797,0.78455986,2549.2,2549.1,5.08265411]
[1748271469995,0.78454627,2549.3,2549.1,5.08265411]
[1748271470505,3.921,2549.6,2549.1,6.09607849]
[1748271470725,0.78454968,2549.3,2549.1,6.09607849]
[1748271470908,0.78455986,2549.2,2549.1,6.09607849]
[1748271471514,0.78454425,2549.3,2549.1,6.09607849]
[1748271471741,0.78450996,2549.4,2549.1,6.09607849]
[1748271472037,0.78455266,2549.3,2549.1,5.08265411]
[1748271472204,0.78455986,2549.2,2549.1,5.08265411]
[1748271474741,0.78454608,2549.3,2549.1,5.08265411]
[1748271474946,0.78452908,2549.3,2549.1,5.08265411]
[1748271476838,0.78455986,2549.2,2549.1,5.08265411]
[1748271477543,0.78455986,2549.2,2549.1,0.46955571]
[1748271478150,2.74247606,2550.1,2549.1,1.79559184]
[1748271478325,0.78448225,2549.5,2549.4,4.6130984]
[1748271478526,0.78445046,2549.6,2549.4,4.6130984]
[1748271478844,0.78446754,2549.5,2549.4,4.6130984]
[1748271479051,0.78445069,2549.6,2549.4,4.6130984]
[1748271480225,0.78443044,2549.7,2549.4,5.59091952]
[1748271480445,0.78443044,2549.7,2549.6,4.6130984]
[1748271481328,0.7844632,2549.6,2549.4,5.08265411]
[1748271481525,0.78446754,2549.5,2549.4,5.08265411]
[1748271482124,0.78446754,2549.5,2549.4,0.46955571]
[1748271482531,0.78452908,2549.3,2549.2,0.46955571]
[1748271483729,0.78452908,2549.3,2549.1,8.46955571]
[1748271484334,0.78455986,2549.2,2549.1,8.46955571]
[1748271484541,0.78451136,2549.4,2549.1,8.46955571]
[1748271484854,0.784546,2549.3,2549.1,8.46955571]
[1748271485955,0.78455986,2549.2,2549.1,8.46955571]
[1748271486249,4.70550513,2549.4,2549.1,8.46955571]
[1748271486250,3.921,2549.4,2549.1,8.46955571]
[1748271486463,0.78454196,2549.3,2549.1,8.46955571]
[1748271489634,0.78454501,2549.3,2549.1,8.46955571]
[1748271489836,0.78455986,2549.2,2549.1,0.46955571]
[1748271491261,0.78455986,2549.2,2549.0,4.6130984]
[1748271491461,0.78459063,2549.1,2549.0,4.6130984]
[1748271492539,0.78457865,2549.2,2549.0,4.6130984]
[1748271492739,1.60884542,2549.3,2549.0,4.6130984]
[1748271493245,0.78456205,2549.2,2549.0,4.6130984]
[1748271493452,0.78457877,2549.2,2549.0,4.6130984]
[1748271493648,0.78459063,2549.1,2549.0,4.6130984]
[1748271493830,0.78457818,2549.2,2549.0,4.6130984]
[1748271494030,0.78459063,2549.1,2549.0,4.6130984]
[1748271494232,0.78455986,2549.2,2549.0,4.6130984]
[1748271494431,0.78459063,2549.1,2549.0,5.08265411]
[1748271495964,0.78457394,2549.2,2549.0,5.08265411]
[1748271498785,0.78449221,2549.5,2549.1,8.778]
[1748271498985,3.921,2549.5,2549.2,8.53588562]
[1748271499138,4.70545516,2549.6,2549.4,4.6130984]
[1748271500158,4.70545516,2549.6,2549.4,5.08265411]
[1748271500360,0.78446754,2549.5,2549.4,5.08265411]
[1748271501875,4.70545168,2549.6,2549.4,5.08265411]
[1748271502040,0.7843894,2549.8,2549.5,8.0]
[1748271502240,0.7843894,2549.8,2549.6,4.6130984]
[1748271502486,4.7053894,2549.8,2549.6,4.6130984]
[1748271503078,0.784406,2549.7,2549.6,12.6130984]
[1748271503573,4.7053918,2549.8,2549.6,12.6130984]
[1748271503782,0.784406,2549.7,2549.6,12.6130984]
[1748271503982,0.78443677,2549.6,2549.5,0.46955571]
[1748271505789,0.78443677,2549.6,2549.4,5.08265411]
[1748271507688,0.78446754,2549.5,2549.4,13.08265411]
[1748271508050,0.78445472,2549.6,2549.4,13.08265411]
[1748271509084,0.7844095,2549.7,2549.5,8.0]
[1748271509255,4.70439229,2549.8,2549.6,4.6130984]
[1748271509455,0.784406,2549.7,2549.6,4.6130984]
[1748271510184,0.78438967,2549.8,2549.6,4.6130984]
[1748271510389,0.784406,2549.7,2549.6,4.6130984]
[1748271517368,0.784406,2549.7,2549.6,5.26624942]
[1748271520365,0.784406,2549.7,2549.6,4.6130984]
[1748271526593,0.78443677,2549.6,2549.5,0.46955571]
[1748271526797,1.58383677,2549.6,2549.5,0.46955571]
[1748271528317,0.78455986,2549.2,2549.1,8.46955571]
[1748271530215,3.92,2549.5,2549.1,8.46955571]
[1748271530369,3.92,2549.5,2549.2,12.6130984]
[1748271530370,0.78454164,2549.3,2549.2,12.6130984]
[1748271530572,0.78454164,2549.3,2549.2,13.08265411]
[1748271531210,0.78449849,2549.4,2549.2,13.08265411]
[1748271531702,0.78449849,2549.4,2549.3,0.46955571]
[1748271534727,0.78447481,2549.5,2549.2,13.08265411]
[1748271534728,0.78452908,2549.3,2549.2,13.08265411]
[1748271535047,0.78452908,2549.3,2549.2,14.71864385]
[1748271538727,0.78452908,2549.3,2549.2,8.46955571]
[1748271541402,0.78452908,2549.3,2549.2,0.46955571]
[1748271542539,0.78455986,2549.2,2549.1,8.46955571]
[1748271545829,0.78455986,2549.2,2549.1,0.46955571]
[1748271547138,0.78459063,2549.1,2549.0,0.46955571]
[1748271550119,0.78462142,2549.0,2548.9,0.46955571]
[1748271555545,1.96257606,2549.9,2549.0,0.8282]
[1748271555856,0.78449831,2549.4,2549.3,4.6130984]
[1748271558058,0.78449831,2549.4,2549.2,0.46955571]
[1748271559056,0.78452908,2549.3,2549.2,0.46955571]
[1748271561950,4.70548004,2549.5,2549.2,0.46955571]
[1748271561951,0.78451527,2549.4,2549.2,0.46955571]
[1748271563066,0.78451527,2549.4,2549.3,0.46955571]
[1748271563666,0.78449831,2549.4,2549.3,0.46955571]
[1748271564972,0.78447996,2549.5,2549.3,0.46955571]
[1748271565140,0.78449831,2549.4,2549.3,0.46955571]
[1748271567857,0.78448501,2549.5,2549.3,0.46955571]
[1748271569166,0.78448501,2549.5,2549.3,5.08265411]
[1748271569564,0.7842,2549.8,2549.3,5.73581024]
[1748271569884,0.78436119,2549.9,2549.7,4.6130984]
[1748271570134,4.70436119,2549.9,2549.6,0.7782]
[1748271570246,0.78438748,2549.8,2549.6,0.7782]
[1748271572294,0.784406,2549.7,2549.5,5.08265411]
[1748271572499,3.92,2550.0,2549.5,0.46955571]
[1748271572795,0.78443677,2549.6,2549.4,1.00229537]
[1748271573577,0.78438381,2549.8,2549.4,0.19779537]
[1748271573780,0.78443124,2549.7,2549.3,5.23780558]
[1748271573959,0.78443677,2549.6,2549.5,0.46931805]
[1748271575879,0.78442083,2549.7,2549.5,0.46931805]
[1748271576458,0.78442083,2549.7,2549.5,0.9969673]
[1748271576661,0.78443677,2549.6,2549.5,0.9969673]
[1748271577279,0.78443677,2549.6,2549.5,0.52764925]
[1748271577458,0.78443677,2549.6,2549.4,0.66339406]
[1748271578078,4.709,2550.3,2549.5,5.3647984]
[1748271578374,0.78429638,2550.1,2549.8,4.6130984]
[1748271579292,0.789,2549.9,2549.5,1.37640718]
[1748271579491,0.78443677,2549.6,2549.5,0.62470718]
[1748271579789,0.78442485,2549.7,2549.5,0.62470718]
[1748271580011,0.78442485,2549.7,2549.5,0.46901129]
[1748271580494,0.78442485,2549.7,2549.5,1.13969058]
[1748271580649,0.7843941,2549.8,2549.5,1.13969058]
[1748271580996,0.7843941,2549.8,2549.5,0.67067929]
[1748271581589,0.7843941,2549.8,2549.5,5.32299786]
[1748271581750,0.7843941,2549.8,2549.5,5.79200915]
[1748271581950,0.7843941,2549.8,2549.6,0.99085362]
[1748271582354,0.78432833,2550.0,2549.7,5.3831984]
[1748271583201,0.78432833,2550.0,2549.8,0.46901129]
[1748271584902,0.78432833,2550.0,2549.8,0.86180292]
[1748271586206,0.78434448,2549.9,2549.8,0.86180292]
[1748271586703,0.78434448,2549.9,2549.8,0.39279163]
[1748271586903,0.78434448,2549.9,2549.7,0.46901129]
[1748271587108,0.78434448,2549.9,2549.7,1.67378734]
[1748271588405,0.78433208,2550.0,2549.7,1.67378734]
[1748271590671,0.78433208,2550.0,2549.7,6.28688574]
[1748271592106,0.78435097,2549.9,2549.7,6.28688574]
[1748271592783,0.78433213,2550.0,2549.7,6.28688574]
[1748271594706,0.78433213,2550.0,2549.8,0.46901129]
[1748271597008,0.78430073,2550.1,2549.8,0.46901129]
[1748271597682,4.70427079,2550.2,2549.8,0.46901129]
[1748271598214,0.78428467,2550.1,2549.8,0.46901129]
[1748271598515,0.78428467,2550.1,2549.8,0.8640823]
[1748271598717,0.78428467,2550.1,2549.9,0.46901129]
[1748271599618,4.7042042,2550.4,2549.9,9.80318064]
[1748271599803,4.70419409,2550.4,2550.0,3.92155094]
[1748271600122,0.78422412,2550.3,2550.1,4.6130984]
[1748271600282,4.70411076,2550.7,2550.2,8.99562632]
[1748271600481,1.57158259,2550.8,2550.4,4.6130984]
[1748271600787,0.74017472,2551.0,2550.8,11.92033871]
[1748271600984,0.4663562,2551.4,2550.9,5.80513227]
[1748271601184,1.25026325,2551.4,2550.9,5.80513227]
[1748271601384,2.53656978,2551.7,2551.1,4.6130984]
[1748271601620,0.78392247,2551.3,2550.9,6.57683227]
[1748271601915,3.919,2551.4,2550.9,0.7717]
[1748271602214,0.78398982,2551.1,2550.9,0.7717]
[1748271602420,0.78399948,2551.1,2550.8,0.62470718]
[1748271602622,0.78399572,2551.1,2550.8,0.46806334]
[1748271602989,0.78397491,2551.2,2550.8,0.46806334]
[1748271603317,0.78402548,2551.0,2550.8,0.46806334]
[1748271603717,0.78400627,2551.0,2550.8,0.46806334]
[1748271603895,0.78397764,2551.1,2550.7,5.85286174]
[1748271604088,0.78405217,2550.9,2550.7,5.85286174]
[1748271604303,0.78406774,2550.8,2550.7,13.08116174]
[1748271604503,0.78403174,2551.0,2550.7,13.08116174]
[1748271604806,1.57708251,2551.1,2550.7,5.08116174]
[1748271605009,0.78403488,2551.0,2550.7,5.08116174]
[1748271605230,0.78403887,2550.9,2550.7,4.6130984]
[1748271605631,0.78403887,2550.9,2550.6,0.46806334]
[1748271605831,0.7840914,2550.8,2550.6,5.08116174]
[1748271606005,0.78405871,2550.9,2550.6,5.08116174]
[1748271606200,0.78407335,2550.8,2550.6,5.08116174]
[1748271606444,0.7840482,2550.9,2550.6,4.6130984]
[1748271606741,0.78407449,2550.8,2550.6,4.6130984]
[1748271607105,0.78405312,2550.9,2550.6,5.86499191]
[1748271607509,0.8017,2551.5,2550.8,8.53328526]
[1748271607758,0.8017,2551.5,2550.7,8.8175]
[1748271607759,0.78393148,2551.3,2551.0,4.6130984]
[1748271607957,0.78389715,2551.4,2551.0,4.6130984]
[1748271608162,0.78386655,2551.5,2551.1,0.7936]
[1748271608686,0.78382762,2551.6,2551.2,4.6130984]
[1748271609172,0.78382762,2551.6,2551.2,8.53280901]
[1748271609467,3.919,2551.8,2551.2,4.6130984]
[1748271609829,0.78390636,2551.4,2551.1,1.18772031]
[1748271610029,0.78390636,2551.4,2551.1,2.7511498]
[1748271610499,0.78386192,2551.5,2551.1,2.7511498]
[1748271610641,0.78388781,2551.4,2551.1,2.7511498]
[1748271611594,0.78388781,2551.4,2551.2,4.6130984]
[1748271612282,0.78379795,2551.7,2551.2,8.57193696]
[1748271612438,0.78379795,2551.7,2551.5,4.6130984]
[1748271613844,0.78376239,2551.8,2551.5,4.6130984]
[1748271614150,0.78380986,2551.7,2551.5,4.6130984]
[1748271615038,0.78380986,2551.7,2551.5,5.4380984]
[1748271615496,0.78382191,2551.6,2551.5,5.4380984]
[1748271615698,0.78382191,2551.6,2551.5,0.825]
[1748271615994,0.78379119,2551.7,2551.5,0.825]
[1748271616294,0.78382191,2551.6,2551.5,0.825]
[1748271616597,0.78381456,2551.7,2551.4,4.6130984]
[1748271616785,0.78378248,2551.8,2551.4,5.54787258]
[1748271616986,0.88374543,2551.9,2551.6,4.6130984]
[1748271617185,0.1,2551.9,2551.6,4.6130984]
[1748271617382,0.88373282,2551.9,2551.7,0.8331]
[1748271617586,0.88373282,2551.9,2551.7,1.0342901]
[1748271617787,0.88373282,2551.9,2551.7,1.59902895]
[1748271619496,0.78376048,2551.8,2551.7,1.59902895]
[1748271619803,0.78376048,2551.8,2551.7,0.76592895]
[1748271619965,0.78385257,2551.6,2551.4,0.93477418]
[1748271620163,0.9134,2551.9,2551.4,0.93477418]
[1748271620380,0.78378436,2551.8,2551.4,5.54787258]
[1748271620581,0.78382363,2551.6,2551.4,5.54787258]
[1748271620900,0.78381211,2551.7,2551.5,1.85284726]
[1748271621104,0.78377816,2551.8,2551.5,1.85284726]
[1748271621612,0.8837475,2551.9,2551.5,1.85284726]
[1748271621790,0.78378003,2551.8,2551.5,1.85284726]
[1748271621987,0.88374442,2551.9,2551.6,4.6130984]
[1748271622192,0.88374442,2551.9,2551.7,0.64659457]
[1748271622390,0.1,2551.9,2551.7,0.64659457]
[1748271622615,0.1,2551.9,2551.8,0.8272]
[1748271622809,0.88372976,2551.9,2551.8,0.8272]
[1748271623516,0.1,2551.9,2551.8,0.8272]
[1748271623816,0.1,2551.9,2551.8,1.4358893]
[1748271624388,0.1,2551.9,2551.8,6.0489877]
[1748271626215,0.88372976,2551.9,2551.8,6.0489877]
[1748271626420,0.88372976,2551.9,2551.6,13.3803984]
[1748271627085,0.1,2551.9,2551.6,13.3803984]
[1748271627842,0.1,2551.9,2551.6,17.29950599]
[1748271628294,0.1,2551.9,2551.8,4.6130984]
[1748271628495,0.1,2551.9,2551.8,6.73494356]
[1748271629709,0.88372976,2551.9,2551.6,18.04346174]
[1748271630694,0.1,2551.9,2551.6,13.84846174]
[1748271630900,0.78379119,2551.7,2551.6,0.46806334]
[1748271631701,0.78377506,2551.8,2551.6,0.46806334]
[1748271632316,0.78377506,2551.8,2551.5,5.08116174]
[1748271633259,0.78379368,2551.7,2551.5,5.08116174]
[1748271633557,0.78377779,2551.8,2551.5,5.08116174]
[1748271633854,0.7837917,2551.7,2551.5,5.08116174]
[1748271634623,0.78377783,2551.8,2551.5,5.08116174]
[1748271634847,0.78379124,2551.7,2551.5,5.08116174]
[1748271635439,0.78382191,2551.6,2551.5,0.46806334]
[1748271635649,2.59539306,2551.6,2551.5,0.46806334]
[1748271636338,2.59539306,2551.6,2550.9,0.46806334]
[1748271636339,0.78400627,2551.0,2550.9,0.46806334]
[1748271637756,0.78399383,2551.1,2550.9,0.46806334]
[1748271640572,0.78400627,2551.0,2550.9,0.46806334]
[1748271641269,0.78400627,2551.0,2550.8,5.08116174]
[1748271641832,0.784037,2550.9,2550.8,0.46806334]
[1748271642158,1.572937,2550.9,2550.8,0.46806334]
[1748271642354,0.78401508,2551.0,2550.8,5.08116174]
[1748271642546,0.78399464,2551.1,2550.8,6.07124863]
[1748271642862,0.78399464,2551.1,2550.8,5.60318529]
[1748271643737,0.78397553,2551.1,2551.0,4.6130984]
[1748271646342,0.78397553,2551.1,2551.0,5.22022326]
[1748271646606,0.78397553,2551.1,2550.8,6.07124863]
[1748271646880,0.784037,2550.9,2550.8,5.08116174]
[1748271647467,0.78402426,2551.0,2550.8,5.08116174]
[1748271647679,0.784037,2550.9,2550.8,5.08116174]
[1748271647992,0.7840283,2551.0,2550.8,4.6130984]
[1748271648286,0.7840283,2551.0,2550.8,5.59721457]
[1748271648988,0.8318,2551.5,2550.9,0.7832]
[1748271649186,0.78391198,2551.4,2551.2,4.6130984]
[1748271649392,0.78391408,2551.3,2551.2,4.6130984]
[1748271655519,0.78394481,2551.2,2551.1,0.38577864]
[1748271655681,0.78397553,2551.1,2551.0,0.46806334]
[1748271656433,0.8078,2551.5,2551.0,5.08116174]
[1748271656594,0.78391408,2551.3,2551.2,4.6130984]
[1748271659480,0.78388335,2551.4,2551.2,4.6130984]
[1748271659798,0.78391408,2551.3,2551.2,4.6130984]
[1748271660115,0.78390087,2551.4,2551.2,4.6130984]
[1748271661381,4.735,2551.7,2551.2,4.6130984]
[1748271661589,4.735,2551.7,2551.1,1.69581103]
[1748271661590,0.818,2551.7,2551.4,4.6130984]
[1748271661885,0.783809,2551.7,2551.6,4.6130984]
[1748271662997,0.1,2551.9,2551.6,4.6130984]
[1748271663196,0.7837609,2551.8,2551.6,5.46632652]
[1748271663888,0.88374462,2551.9,2551.6,5.46632652]
[1748271664526,0.88374462,2551.9,2551.6,5.93438986]
[1748271665018,0.88374462,2551.9,2551.8,4.6130984]
[1748271665348,0.1,2551.9,2551.8,4.6130984]
[1748271665525,0.1,2551.9,2551.8,5.21045617]
[1748271669327,0.1,2551.9,2551.8,4.6130984]
[1748271669837,0.88372976,2551.9,2551.8,4.6130984]
[1748271670698,0.1,2551.9,2551.8,4.6130984]
[1748271672809,0.1,2551.9,2551.8,5.3755984]
[1748271673843,0.1,2551.9,2551.8,5.84366174]
[1748271674050,0.1,2551.9,2551.8,6.88238619]
[1748271678504,0.1,2551.9,2551.8,10.8011886]
[1748271678704,0.1,2551.9,2551.8,6.88238619]
[1748271679346,0.1,2551.9,2551.8,10.8011886]
[1748271681436,0.1,2551.9,2551.8,6.88238619]
[1748271681733,0.1,2551.9,2551.8,6.41432285]
[1748271682043,0.1,2551.9,2551.8,10.33312526]
[1748271684217,0.78362477,2552.3,2551.8,10.33312526]
[1748271684420,0.78363764,2552.2,2552.1,4.6130984]
[1748271684638,0.78358785,2552.4,2552.1,4.6130984]
[1748271684817,0.78362827,2552.3,2552.1,4.6130984]
[1748271685149,0.78362827,2552.3,2552.1,4.80777656]
[1748271685553,0.78363764,2552.2,2552.1,4.6130984]
[1748271685727,0.78363764,2552.2,2552.1,5.31758201]
[1748271689452,0.78366835,2552.1,2552.0,5.08115915]
[1748271690655,1.57106835,2552.1,2552.0,5.08115915]
[1748271692052,0.78366835,2552.1,2552.0,5.08115915]
[1748271692423,0.7836523,2552.2,2552.0,5.08115915]
[1748271692818,0.7836377,2552.2,2552.0,5.08115915]
[1748271693062,0.7836377,2552.2,2552.1,0.70448361]
[1748271693557,0.78362341,2552.3,2552.1,0.70448361]
[1748271693755,0.78362341,2552.3,2552.2,4.6130984]
[1748271694665,0.78355165,2552.5,2552.2,4.6130984]
[1748271694820,0.78355165,2552.5,2552.4,4.6130984]
[1748271695021,0.7835306,2552.6,2552.4,4.6130984]
[1748271695221,0.78345556,2552.8,2552.4,3.91781489]
[1748271695461,1.70553272,2552.9,2552.7,4.6130984]
[1748271695667,0.88343272,2552.9,2552.7,4.6130984]
[1748271696064,0.1,2552.9,2552.7,4.6130984]
[1748271696276,0.88342424,2552.9,2552.7,5.4661746]
[1748271696591,0.88343934,2552.9,2552.7,5.4661746]
[1748271696786,0.1,2552.9,2552.7,5.4661746]
[1748271696951,0.88342284,2552.9,2552.7,5.4661746]
[1748271697155,0.78345346,2552.8,2552.7,5.4661746]
[1748271697555,0.59645346,2552.8,2552.7,5.4661746]
[1748271699887,0.59645346,2552.8,2552.7,0.8530762]
[1748271700215,0.78348415,2552.7,2552.6,0.46806075]
[1748271700496,1.54088415,2552.7,2552.6,0.46806075]